Cogmind - Beta 10.2 @@@ ROGUE MODE // 2020.11.07 @ 12:42:38 Player: Ty Result: Destroyed by G-34 Mercenary with Small Laser Performance ------------- Evolutions (1) 500 Regions Visited (3) 600 Robots Destroyed (23) 115 Value Destroyed (352) 352 Prototype IDs (1) 20 Alien Tech Used (0) 0 Bonus (0) 0 TOTAL SCORE: 1587 Bonus ------- None Cogmind --------- Core Integrity 0/400 Matter 47/500 Energy 100/100 System Corruption 1% Temperature Cool (18) Movement Core (150) Ox2 Location -9/Storage Parts ------- > --- POWER (1) -------- (None) > --- PROPULSION (2) --- (None) > --- UTILITY (4) ------ Small Storage Unit High-capacity Matter Pod Power Shielding > --- WEAPON (2) ------- (None) > --- INVENTORY (6) ---- High-capacity Matter Pod (0) Improved Targeting Computer Peak State ------------ > --- POWER ------------ Light Ion Engine > --- PROPULSION ------- Armored Wheel Improved Hover Unit > --- UTILITY ---------- Small Storage Unit Small Storage Unit High-capacity Matter Pod Power Shielding > --- WEAPON ----------- Guided Missile Launcher > --- INVENTORY -------- Wheel High-capacity Matter Pod Improved Targeting Computer Guided Missile Launcher [Rating: 20] Favorites ----------- Power Ion Engine Engine Ion Engine Propulsion Light Treads Treads Light Treads Wheel Wheel Hover Unit Improved Hover Unit Utility Small Storage Unit Device Improved Terrain Scanner Storage Small Storage Unit Protection Power Shielding Weapon Assault Rifle Ballistic Gun Assault Rifle Launcher Guided Missile Launcher Build | -11 -10 -9 -9 ------- Run | Scr Mat Mat Sto Slots Evolved 2 | . . 2 . Power . | . . . . Propulsion . | . . . . Utility 2 | . . 2 . Weapon . | . . . . Parts Attached 21 | 6 . 5 10 Power 3 | 1 . . 2 Engine 3 | 1 . . 2 Core . | . . . . Reactor . | . . . . Propulsion 7 | 2 . 2 3 Treads 2 | 2 . . . Leg . | . . . . Wheel 3 | . . . 3 Hover 2 | . . 2 . Flight . | . . . . Utility 5 | 1 . 3 1 Device 1 | . . 1 . Storage 3 | 1 . 1 1 Processor . | . . . . Hackware . | . . . . Protection 1 | . . 1 . Artifact . | . . . . Weapon 6 | 2 . . 4 Energy Gun . | . . . . Energy Cannon . | . . . . Ballistic Gun 2 | 2 . . . Ballistic Cannon . | . . . . Launcher 4 | . . . 4 Special Weapon . | . . . . Impact Weapon . | . . . . Slashing Weapon . | . . . . Piercing Weapon . | . . . . Special Melee Weapon . | . . . . Unidentified Prototypes 1 | . . . 1 Parts Lost 10 | . . . 10 Power 2 | . . . 2 Propulsion 3 | . . . 3 Utility 1 | . . . 1 Weapon 4 | . . . 4 Highest Loss Streak 4 | . . . 4 Average Slot Usage (%) 76 | . 85 83 67 Engine 8 | . 14 11 5 Treads 12 | . 28 20 . Wheel 2 | . . . 4 Hover 5 | . . 1 10 Storage 19 | . 14 16 24 Protection 9 | . . 11 11 Ballistic Gun 14 | . 28 22 3 Launcher 3 | . . . 7 Naked Turns . | . . . . Heaviest Build 26 | 12 12 18 26 Greatest Support 40 | 40 40 40 22 Greatest Overweight (x) 3 | . . 1 3 Average Overweight (x) . | . . . 1 Largest Inventory Capacity 8 | 6 6 6 8 Average Capacity 6 | 4 6 6 6 Most Carried 6 | 4 2 6 6 Average Carried 1 | . . 1 1 Final Capacity 6 | 6 6 6 6 Final Carried 2 | . 2 . 2 Class Distribution -------------------- 100% | Mutant Dominant Class ---------------- Mutant | -10/Materials Mutant | -9/Materials Mutant | -9/Storage Resources | -11 -10 -9 -9 ----------- Run | Scr Mat Mat Sto Matter Collected 482 | 229 91 30 132 Remotely . | . . . . Salvage Created 528 | . 148 186 194 Parts 51 | . 14 23 14 Haulers Intercepted . | . . . . Recyclers Shooed 1 | . . . 1 Parts Field Recycled . | . . . . Retrieved Matter . | . . . . Parts Self-Destructed . | . . . . Prevented . | . . . . Kills | -11 -10 -9 -9 ------- Run | Scr Mat Mat Sto Combat Hostiles Destroyed 13 | . 1 8 4 Guns 12 | . 1 8 3 AOE 1 | . . . 1 Classes Destroyed 8 | . 5 2 1 Worker 3 | . 1 . 2 Builder 1 | . 1 . . Recycler 2 | . . . 2 Operator 2 | . 1 . 1 Watcher 2 | . 2 . . Swarmer 9 | . . 6 3 Grunt 2 | . 1 1 . Sentry 2 | . . 1 1 Best Kill Streak 4 | . 4 4 3 Combat Bots Only 4 | . 1 4 3 Max Kills in Single Turn 2 | . 1 2 1 Gunslinging 1 | . . 1 . Exploded 1 | . . . 1 Melee . | . . . . Uniques/NPCs Destroyed . | . . . . Combat | -11 -10 -9 -9 -------- Run | Scr Mat Mat Sto Damage Taken 1299 | . 84 308 907 Core 421 | . 11 74 336 Absorbed by Shields . | . . . . Core Remaining (%) 97 | 100 95 . . Volleys Fired 56 | . 15 11 30 Largest 2 | . 2 2 2 Hottest 40 | . 40 40 40 Shots Fired 86 | . 30 22 34 Gun 69 | . 30 22 17 Cannon . | . . . . Launcher 17 | . . . 17 Special . | . . . . Kinetic 69 | . 30 22 17 Thermal . | . . . . Explosive 17 | . . . 17 Electromagnetic . | . . . . Robot Hit Streak 16 | . 9 6 16 Robot Miss Streak 3 | . 1 2 3 Penetration Max . | . . . . Secondary Targets 2 | . . 2 . Max Gunslinging Chain 1 | . . 1 . Shots Hit Robots 56 | . 21 13 22 Core Hits 36 | . 10 9 17 Critical Hits . | . . . . Critical Kills . | . . . . Critical Parts Destroyed . | . . . . Melee Attacks . | . . . . Impact . | . . . . Slashing . | . . . . Piercing . | . . . . Sneak Attacks . | . . . . Combat Hostiles . | . . . . Follow-up Attacks . | . . . . Damage Inflicted 1467 | . 198 163 1106 Guns 451 | . 198 163 90 Cannons . | . . . . Explosions 988 | . . . 988 Melee . | . . . . Ramming 28 | . . . 28 Kinetic 451 | . 198 163 90 Thermal . | . . . . Explosive 988 | . . . 988 Electromagnetic . | . . . . Impact . | . . . . Slashing . | . . . . Piercing . | . . . . Highest Corruption 1 | . . . 1 Average Corruption 1 | . . . 1 Corruption Purged . | . . . . Overload Shots . | . . . . Overflow Damage 65 | . . . 65 Projectiles . | . . . . Explosions 65 | . . . 65 Melee . | . . . . Knockbacks . | . . . . Impact . | . . . . Kinetic . | . . . . Secondary . | . . . . Self-Inflicted Damage 47 | . . . 47 Shots 1 | . . . 1 Rammed 7 | . . . 7 Targets Rammed 7 | . . . 7 Kicked . | . . . . Crushed . | . . . . Highest Temperature 6 | . 6 6 1 Average Temperature 4 | . 6 4 1 Received Heat Transfer 348 | . 48 27 273 Siege Activations . | . . . . Robots Corrupted . | . . . . Combat Hostiles . | . . . . Parts Fried . | . . . . Impact Corruptions . | . . . . Robots Melted . | . . . . Combat Hostiles . | . . . . Parts Melted . | . . . . Heat Transferred . | . . . . Parts Sabotaged . | . . . . Parts Stolen . | . . . . Parts Stripped . | . . . . Power Chain Reactions . | . . . . Missiles Intercepted . | . . . . Alert | -11 -10 -9 -9 ------- Run | Scr Mat Mat Sto Peak Influence 278 | . 79 278 272 Initial 117 | . . 33 117 Average 115 | . 45 121 170 Maximum Alert Level 1 | . . 1 1 Low Security (%) 79 | 100 100 90 57 Level 1 20 | . . 9 42 Level 2 . | . . . . Level 3 . | . . . . Level 4 . | . . . . Level 5 . | . . . . High Security . | . . . . Max Security . | . . . . Squads Dispatched 4 | . 1 1 2 Investigation 1 | . . . 1 Extermination . | . . . . Reinforcement 3 | . 1 1 1 Assault . | . . . . Garrison . | . . . . Intercept . | . . . . Construction Impeded 1 | . . . 1 Haulers Reinforced . | . . . . Stealth | -11 -10 -9 -9 --------- Run | Scr Mat Mat Sto Distress Signals 2 | . . . 2 Communications Jammed . | . . . . Distress Signals . | . . . . Times Spotted 37 | . 4 17 16 Peak Tracking Total 11 | . 2 8 11 Tactical Retreats 2 | . . . 2 Traps | -11 -10 -9 -9 ------- Run | Scr Mat Mat Sto Traps Triggered 2 | . . . 2 Indirectly . | . . . . Trap Hack Attempts . | . . . . Triggered . | . . . . Disarmed . | . . . . Reprogrammed . | . . . . Reused . | . . . . Traps Extracted . | . . . . Installed . | . . . . Triggered . | . . . . Machines | -11 -10 -9 -9 ---------- Run | Scr Mat Mat Sto Machines Disabled 2 | . . . 2 Max in Single Turn 1 | . . . 1 Machines Sabotaged . | . . . . Garrisons Compromised . | . . . . Overloaded Fab Kills . | . . . . Fab Network Shutdowns . | . . . . Hacking | -11 -10 -9 -9 --------- Run | Scr Mat Mat Sto Machines Accessed . | . . . . Terminals . | . . . . Fabricators . | . . . . Repair Stations . | . . . . Recycling Units . | . . . . Scanalyzers . | . . . . Garrison Access . | . . . . Total Hacks . | . . . . Successful . | . . . . Failed . | . . . . Catastrophic . | . . . . Database Lockouts . | . . . . Manual . | . . . . Terminals . | . . . . Fabricators . | . . . . Repair Stations . | . . . . Recycling Units . | . . . . Scanalyzers . | . . . . Garrison Access . | . . . . Terminal Hacks . | . . . . Fabricator Hacks . | . . . . Repair Station Hacks . | . . . . Recycling Unit Hacks . | . . . . Scanalyzer . | . . . . Garrison Access Hacks . | . . . . Unauthorized Hacks . | . . . . Terminals . | . . . . Fabricators . | . . . . Repair Stations . | . . . . Recycling Units . | . . . . Scanalyzers . | . . . . Garrison Access . | . . . . Data Cores Recovered . | . . . . Used . | . . . . Hacking Detections . | . . . . Full Trace Events . | . . . . Feedback Events . | . . . . Feedback Blocked . | . . . . Robot Schematics Acquired . | . . . . Robots Built . | . . . . Matter . | . . . . Time . | . . . . Total Robot Build Rating . | . . . . Part Schematics Acquired . | . . . . Parts Built . | . . . . Matter . | . . . . Time . | . . . . Total Part Build Rating . | . . . . Parts Repaired . | . . . . Time . | . . . . Parts Recycled . | . . . . Recycled Matter . | . . . . Retrieved Matter . | . . . . Retrieved Components . | . . . . Parts Scanalyzed . | . . . . Part Schematics Acquired . | . . . . Parts Damaged . | . . . . Bothacking | -11 -10 -9 -9 ------------ Run | Scr Mat Mat Sto Used RIF Installer . | . . . . Robots Hacked . | . . . . Non-combat . | . . . . Combat . | . . . . Robot Hacks Applied . | . . . . Relay Couplers Released . | . . . . Robots Rewired . | . . . . Allies Hacked . | . . . . Hacks Repelled . | . . . . Allies | -11 -10 -9 -9 -------- Run | Scr Mat Mat Sto Total Allies . | . . . . Largest Group . | . . . . Highest-Rated Group . | . . . . Highest-Rated Ally . | . . . . Total Orders . | . . . . Ally Attacks . | . . . . Total Damage . | . . . . Kills . | . . . . Allies Corrupted . | . . . . Allies Melted . | . . . . Intel | -11 -10 -9 -9 ------- Run | Scr Mat Mat Sto Robot Analysis Total . | . . . . Derelict Logs Recovered . | . . . . Drone Launches . | . . . . Drone Recoveries . | . . . . Exploration | -11 -10 -9 -9 ------------- Run | Scr Mat Mat Sto Turns Passed 1158 | 141 168 376 473 Spaces Moved 653 | 83 78 209 283 Core 23 | 8 . . 15 Treads 347 | 75 78 194 . Legs . | . . . . Wheels 117 | . . . 117 Hover 166 | . . 15 151 Flight . | . . . . Fastest Speed 50 | 50 160 116 85 Average Speed 145 | 149 160 156 131 Slowest Speed 200 | 160 160 160 200 Overloaded Moves . | . . . . Propulsion Burnouts . | . . . . Robots Hopped . | . . . . Cave-ins Triggered . | . . . . Exploration Rate (%) 27 | 5 27 18 59 Regions Visited 3 Branch Regions 1 Pre-discovered Areas . | . . . . Known Exits Taken . | . . . . Unknown Exits Taken 3 | 1 1 1 . Scrap Searched . | . . . . Spaces Dug . | . . . . Terrain Destroyed 86 | . . . 86 Melee . | . . . . Projectile . | . . . . AOE 86 | . . . 86 Terrain Rammed . | . . . . Walls Destroyed . | . . . . Machines Disabled . | . . . . Actions | -11 -10 -9 -9 --------- Run | Scr Mat Mat Sto Total 789 | 102 94 241 352 Wait . | . . . . Move 650 | 82 77 208 283 Hop . | . . . . Pick Up 35 | 10 2 9 14 Fast Attach . | . . . . Attach 18 | 6 . 5 7 Detach . | . . . . Swap 3 | . . . 3 Drop 20 | 4 . 8 8 Fire 56 | . 15 11 30 Melee . | . . . . Ram 7 | . . . 7 Kick . | . . . . Crush . | . . . . Escape Stasis . | . . . . Rewire . | . . . . Trap . | . . . . Miscellaneous . | . . . . Route ------- -11/Scrapyard -10/Materials -9/Materials (discovered 2 exits: [*Min] / [*Sto]) -9/Storage History --------- Turn | Location | Event 11 | -11/Scrapyard | Discovered new exit (range 16) 142 | -11/Scrapyard | Entered Materials 303 | -10/Materials | Discovered new exit (range 3) 310 | -10/Materials | Entered another Materials area 310 | -9/Materials | Evolved 2 slots: Utility x2 331 | -9/Materials | Build established: Mutant 638 | -9/Materials | Discovered new exit (range 15) 671 | -9/Materials | Discovered new exit (range 10) 686 | -9/Materials | Entered Storage 779 | -9/Storage | Lost 3 parts (1n1u1w) 784 | -9/Storage | Found Prototype Launcher 786 | -9/Storage | Found Prototype Launcher 787 | -9/Storage | Identified Gui. Missile Launcher (x2) 790 | -9/Storage | Found Gui. Missile Launcher 793 | -9/Storage | Found Gui. Missile Launcher 937 | -9/Storage | Found Gui. Missile Launcher 1096 | -9/Storage | Core integrity fell below 50% 1141 | -9/Storage | Core integrity fell below 20% 1159 | -9/Storage | Destroyed by G-34 Mercenary with Small Laser Last Messages --------------- K-01 Serf collects debris. W-16 Scout sends out distress signal. U-05 Engineer lays Concrete. U-05 Engineer builds a Wall. U-05 Engineer lays Concrete. Triggered Alarm Trap. An alarm sounds. ALERT: Alarm triggered, dispatching investigation squad. U-05 Engineer lays Concrete. Gui. Missile Launcher destroyed. Broken Wheel destroyed. Slammed into K-01 Serf. Arm. Wheel destroyed. Lgt. Ion Engine destroyed. K-01 Serf cleans the Recycling Unit. Slammed into A-02 Transporter. A-02 Transporter sends out distress signal. Slammed into G-34 Mercenary. Destabilizing: System corrupted (+1). Slammed into G-34 Mercenary. Map ----- +----------------------------------------------------+ | ?????????????????????????????????????????????" " | | ?????????????????????????????????????????????T " | | ?????????????????????????????????????????????" " | | ?????????????????????????????????????????????? | | ???????????????????????????????????????????? ? | | ????????????????????????????????????????????#+#??? | | ?????????????????????????????????????######## #### | | ????????????????????????????????????? | | ????????????????????????????????????? | | ????????????????????????????????????"" """ | | ????????????????????????????????????"" """ | | ????????????????????????????????????"" """ | | ????????????????????????????????? ?? | | ???????????????????????????????? r #### | | ???????????????????????#####???? a""" ## | | ????????????????????####"T"##### """ ## | | ????????????????????# """ """ ## ! | | ????????????????????# a G" # | | ????????????????????# """ + / | | ????????????????????# # / | | ????????????????????# a # ! | | ????????????????????# "" #??########### # | | ????????????????????# "Y #??# ## ### | | ?????????????+####### "" g #??# # #T | | ?????????? k a g #### # | | ?????????? @ g Y / | | ?????????????????#### ##Y#+#### # | | ????????????????????###### ???# # ## | | ?????????????????????????# """ ?#*! #######? | | ????????????????????????? """ ##*! #??????? | | ????????????????????????## """ T# #??????? | | ?????????????????????????# ###########??????? | | ?????????????????????????# """ #????????????????? | | ?????????????????????????# """ #????????????????? | | ?????????????????????????# ?????#????????????????? | | ?????????????????????????# ??????????????????????? | | ?????????????????????????# ??????????????????????? | | ?????????????????????????? ??????????????????????? | | ?????????????????????????????????????????????????? | | ?????????????????????????????????????????????????? | | ?????????????????????????????????????????????????? | | ?????????????????????????????????????????????????? | | ?????????????????????????????????????????????????? | | ?????????????????????????????????????????????????? | | | | | | | | | | | | | +----------------------------------------------------+ Best States ------------- Heat Dissipation 28 Energy Generation 10 Energy Capacity 250 Matter Stores 300 Matter Capacity 500 Sight Range 16 Terrain Scan Range 16 Terrain Scan Density 10 Power Shielding 33 Evasion (%) 43 Recoil Reduction 2 Item Schematics ----------------- None Robot Schematics ------------------ None Fabricated ------------ Nothing Alien Tech Used ----------------- None Achievements -------------- Crack Shot Challenges ------------ None Game ------ Seed ScanArmorImmobilizer Manual? 0 Play Time 00:12:57 Cumulative 1.9 hours Start 2020.11.07 @ 12:34:00 End 2020.11.07 @ 12:42:38 Sessions 1 Manual Loads 0 Difficulty Rogue Special Mode None Game No. 4 Rogue 4 Adventurer 0 Explorer 0 Win Type - Total 0 Types 0/0/0/0/0/0/0/0/0 Lore% 4 Gallery% 5 Achievement% 5 Wizard Run 0 Options --------- ASCII 0 Keyboard 0 Movement Arrows Keybinds 0 Fullscreen 1 Font 18/SmallcapsGlow Map View 76x50 Tactical HUD 0 Map Filters NONE Filters NONE Steam 1 RUN: 73e50202-4b64-4999-a4df-2ceb2c9d0e3a